[Event "*** SCC Grand Prix: Titled Tuesday Blitz"]
[Site "Chess.com"]
[Date "2020.09.29"]
[Round "2"]
[White "Chamal_Gedgafov"]
[Black "Sjakkerntobi"]
[Result "0-1"]
[WhiteElo "2136"]
[BlackElo "2403"]
[TimeControl "180+1"]
[EndTime "10:17:45 PDT"]
[Termination "Sjakkerntobi won by resignation"]

1. d4 {[%clk 0:03:00.9]} 1... e6 {[%clk 0:02:58.8]} 2. c4 {[%clk 0:03:00.8]}
2... Nf6 {[%clk 0:02:58.9]} 3. Nc3 {[%clk 0:03:01]} 3... d5 {[%clk 0:02:59]} 4.
cxd5 {[%clk 0:02:59.7]} 4... exd5 {[%clk 0:02:59.3]} 5. Bg5 {[%clk 0:02:59.5]}
5... c6 {[%clk 0:02:59.8]} 6. e3 {[%clk 0:02:59.7]} 6... Bf5 {[%clk 0:02:59.9]}
7. Qf3 {[%clk 0:02:56.6]} 7... Bg6 {[%clk 0:02:59.5]} 8. Bxf6 {[%clk 0:02:56.3]}
8... Qxf6 {[%clk 0:03:00.4]} 9. Qxf6 {[%clk 0:02:56.2]} 9... gxf6 {[%clk
0:03:01.3]} 10. Nge2 {[%clk 0:02:54.5]} 10... Nd7 {[%clk 0:02:59.2]} 11. Nf4
{[%clk 0:02:53.5]} 11... Be7 {[%clk 0:02:51.3]} 12. h4 {[%clk 0:02:52.8]} 12...
h5 {[%clk 0:02:45.1]} 13. g3 {[%clk 0:02:48.5]} 13... a5 {[%clk 0:02:42.2]} 14.
Bh3 {[%clk 0:02:43.8]} 14... a4 {[%clk 0:02:40.2]} 15. a3 {[%clk 0:02:42.5]}
15... Nb6 {[%clk 0:02:40.2]} 16. Bf1 {[%clk 0:02:29.7]} 16... Bd6 {[%clk
0:02:17.1]} 17. Ng2 {[%clk 0:02:00.4]} 17... Kd7 {[%clk 0:02:03]} 18. O-O-O
{[%clk 0:01:59.6]} 18... Nc4 {[%clk 0:01:57.6]} 19. Bd3 {[%clk 0:01:50.2]} 19...
b5 {[%clk 0:01:53.1]} 20. Ne2 {[%clk 0:01:50]} 20... b4 {[%clk 0:01:49.1]} 21.
axb4 {[%clk 0:01:50.9]} 21... a3 {[%clk 0:01:44]} 22. b3 {[%clk 0:01:45.1]}
22... a2 {[%clk 0:01:40.7]} 23. Kc2 {[%clk 0:01:44.5]} 23... Na3+ {[%clk
0:01:35.2]} 24. Kb2 {[%clk 0:01:44.3]} 24... Bxd3 {[%clk 0:01:35]} 25. Rxd3
{[%clk 0:01:42]} 25... Nc2 {[%clk 0:01:27.4]} 26. Kxc2 {[%clk 0:01:29.6]} 26...
a1=Q {[%clk 0:01:27.3]} 27. Rxa1 {[%clk 0:01:29.6]} 27... Rxa1 {[%clk
0:01:28.2]} 28. Rd1 {[%clk 0:01:21.6]} 28... Rxd1 {[%clk 0:01:27.4]} 29. Kxd1
{[%clk 0:01:22.5]} 29... Bxb4 {[%clk 0:01:27.8]} 30. Ngf4 {[%clk 0:01:21.9]}
30... Ra8 {[%clk 0:00:58.7]} 31. Kc2 {[%clk 0:01:19.9]} 31... Ra2+ {[%clk
0:00:54.7]} 32. Kb1 {[%clk 0:01:19.7]} 32... Rd2 {[%clk 0:00:50.3]} 33. Kc1
{[%clk 0:01:19.7]} 33... Ke7 {[%clk 0:00:35.3]} 34. Kb1 {[%clk 0:01:16.8]} 34...
Rd1+ {[%clk 0:00:35.1]} 35. Kc2 {[%clk 0:01:16.6]} 35... Rf1 {[%clk 0:00:35.5]}
36. Nxh5 {[%clk 0:01:12.7]} 36... Rxf2 {[%clk 0:00:35.5]} 37. Nf4 {[%clk
0:01:12.5]} 37... Bd6 {[%clk 0:00:33]} 38. Kd3 {[%clk 0:01:07.9]} 38... f5
{[%clk 0:00:20.5]} 39. h5 {[%clk 0:00:31.7]} 39... Bxf4 {[%clk 0:00:20.1]} 40.
Nxf4 {[%clk 0:00:30.9]} 40... Rf3 {[%clk 0:00:20.5]} 41. Ke2 {[%clk 0:00:27]}
41... Rxg3 {[%clk 0:00:20.5]} 42. Kf2 {[%clk 0:00:25.6]} 42... Rg8 {[%clk
0:00:20.7]} 43. Ke2 {[%clk 0:00:24.8]} 43... Kf6 {[%clk 0:00:21.1]} 44. Nd3
{[%clk 0:00:21.5]} 44... Rh8 {[%clk 0:00:20.6]} 45. Ne5 {[%clk 0:00:21.3]} 45...
Rxh5 {[%clk 0:00:18.7]} 46. Nxc6 {[%clk 0:00:20.8]} 46... Ke6 {[%clk 0:00:18.8]}
47. Kd3 {[%clk 0:00:20.2]} 47... Rh3 {[%clk 0:00:18.4]} 48. Kd2 {[%clk
0:00:19.7]} 48... f4 {[%clk 0:00:18.8]} 49. exf4 {[%clk 0:00:20.1]} 49... Rxb3
{[%clk 0:00:18.9]} 50. Nd8+ {[%clk 0:00:20.3]} 50... Kf6 {[%clk 0:00:18.9]} 51.
Nc6 {[%clk 0:00:20.1]} 51... Rf3 {[%clk 0:00:18.6]} 52. Ne5 {[%clk 0:00:19.3]}
52... Rxf4 {[%clk 0:00:19.1]} 53. Ke3 {[%clk 0:00:19.9]} 53... Re4+ {[%clk
0:00:19.6]} 54. Kd3 {[%clk 0:00:19.5]} 54... Rxe5 {[%clk 0:00:20.5]} 55. dxe5+
{[%clk 0:00:20.3]} 55... Kxe5 {[%clk 0:00:21.4]} 56. Ke3 {[%clk 0:00:20.9]}
56... f5 {[%clk 0:00:22.3]} 57. Kf3 {[%clk 0:00:21.2]} 57... f4 {[%clk
0:00:23.2]} 58. Ke2 {[%clk 0:00:20.9]} 58... Kf5 {[%clk 0:00:24.1]} 0-1

[Event "*** SCC Grand Prix: Titled Tuesday Blitz"]
[Site "Chess.com"]
[Date "2020.09.29"]
[Round "2"]
[White "hungrycaterpillar4"]
[Black "mr_gustavo"]
[Result "0-1"]
[WhiteElo "2633"]
[BlackElo "2339"]
[TimeControl "180+1"]
[EndTime "10:17:48 PDT"]
[Termination "mr_gustavo won by checkmate"]

1. e4 {[%clk 0:03:00.9]} 1... e5 {[%clk 0:02:59.1]} 2. Nf3 {[%clk 0:03:01.2]}
2... Nc6 {[%clk 0:02:58.7]} 3. Bb5 {[%clk 0:03:01.7]} 3... a6 {[%clk 0:02:57.8]}
4. Ba4 {[%clk 0:03:01.7]} 4... Nf6 {[%clk 0:02:56.9]} 5. O-O {[%clk 0:03:01.9]}
5... Be7 {[%clk 0:02:56.9]} 6. Re1 {[%clk 0:03:01.7]} 6... b5 {[%clk 0:02:56.9]}
7. Bb3 {[%clk 0:03:02.3]} 7... O-O {[%clk 0:02:57.5]} 8. h3 {[%clk 0:03:01.4]}
8... Bb7 {[%clk 0:02:57]} 9. c3 {[%clk 0:02:51.3]} 9... d5 {[%clk 0:02:56]} 10.
exd5 {[%clk 0:02:49.7]} 10... Nxd5 {[%clk 0:02:56.9]} 11. Nxe5 {[%clk
0:02:48.5]} 11... Nxe5 {[%clk 0:02:57.8]} 12. Rxe5 {[%clk 0:02:49.2]} 12... Nf4
{[%clk 0:02:57.2]} 13. d4 {[%clk 0:02:22.1]} 13... Nxg2 {[%clk 0:02:52.8]} 14.
d5 {[%clk 0:02:06.3]} 14... Nh4 {[%clk 0:02:49.5]} 15. Be3 {[%clk 0:01:52.7]}
15... Bf6 {[%clk 0:02:25.8]} 16. Re4 {[%clk 0:01:47.6]} 16... Nf5 {[%clk
0:02:24.9]} 17. Bf4 {[%clk 0:01:36.1]} 17... Qd7 {[%clk 0:02:09.1]} 18. Na3
{[%clk 0:01:21.3]} 18... Rae8 {[%clk 0:02:00.7]} 19. Rxe8 {[%clk 0:01:14.2]}
19... Rxe8 {[%clk 0:02:00]} 20. Qd3 {[%clk 0:01:14.4]} 20... g6 {[%clk
0:01:47.6]} 21. Nc2 {[%clk 0:01:13.8]} 21... c5 {[%clk 0:01:44]} 22. c4 {[%clk
0:00:59.3]} 22... bxc4 {[%clk 0:01:44.9]} 23. Bxc4 {[%clk 0:00:58.9]} 23... Nd4
{[%clk 0:01:32.3]} 24. Nxd4 {[%clk 0:00:43]} 24... Bxd4 {[%clk 0:01:33.2]} 25.
Qf3 {[%clk 0:00:43.3]} 25... Qf5 {[%clk 0:01:22.8]} 26. Kg2 {[%clk 0:00:35.8]}
26... Qc2 {[%clk 0:01:04]} 27. Bb3 {[%clk 0:00:24.1]} 27... Qxb2 {[%clk
0:01:03.4]} 28. Rd1 {[%clk 0:00:23]} 28... a5 {[%clk 0:00:22.8]} 29. Rd2 {[%clk
0:00:23.1]} 29... Qb1 {[%clk 0:00:17.2]} 30. Re2 {[%clk 0:00:19.5]} 30... Rxe2
{[%clk 0:00:15.1]} 31. Qxe2 {[%clk 0:00:20.4]} 31... a4 {[%clk 0:00:14.3]} 32.
Qe8+ {[%clk 0:00:16.5]} 32... Kg7 {[%clk 0:00:14.8]} 33. Qxa4 {[%clk 0:00:17.1]}
33... Qe4+ {[%clk 0:00:12.6]} 34. Kg3 {[%clk 0:00:16.6]} 34... g5 {[%clk
0:00:08.5]} 35. Be3 {[%clk 0:00:06.1]} 35... Be5+ {[%clk 0:00:07]} 36. f4 {[%clk
0:00:03.8]} 36... gxf4+ {[%clk 0:00:07.5]} 37. Kh4 {[%clk 0:00:02.8]} 37... Qxa4
{[%clk 0:00:06.6]} 38. Bxa4 {[%clk 0:00:03.1]} 38... fxe3 {[%clk 0:00:07.3]} 39.
Bb5 {[%clk 0:00:03.5]} 39... Bxd5 {[%clk 0:00:07.2]} 40. Be2 {[%clk 0:00:04]}
40... c4 {[%clk 0:00:07.1]} 41. a4 {[%clk 0:00:03.3]} 41... c3 {[%clk
0:00:07.7]} 42. a5 {[%clk 0:00:03.5]} 42... c2 {[%clk 0:00:08.2]} 43. a6 {[%clk
0:00:03.7]} 43... c1=Q {[%clk 0:00:08.7]} 44. a7 {[%clk 0:00:03.7]} 44... Qe1+
{[%clk 0:00:09.2]} 45. Kg5 {[%clk 0:00:03.3]} 45... Qxe2 {[%clk 0:00:09.6]} 46.
a8=Q {[%clk 0:00:03.4]} 46... Bxa8 {[%clk 0:00:09.5]} 47. Kh4 {[%clk 0:00:04.3]}
47... Bf6+ {[%clk 0:00:09.1]} 48. Kg3 {[%clk 0:00:04.2]} 48... Qf2+ {[%clk
0:00:09.4]} 49. Kg4 {[%clk 0:00:03.7]} 49... Qf3# {[%clk 0:00:09.7]} 0-1

[Event "*** SCC Grand Prix: Titled Tuesday Blitz"]
[Site "Chess.com"]
[Date "2020.09.29"]
[Round "2"]
[White "Berardino"]
[Black "renehp"]
[Result "1-0"]
[WhiteElo "2712"]
[BlackElo "2467"]
[TimeControl "180+1"]
[EndTime "10:17:49 PDT"]
[Termination "Berardino won by resignation"]

1. e4 {[%clk 0:02:29.4]} 1... d5 {[%clk 0:02:59.5]} 2. exd5 {[%clk 0:02:29.4]}
2... Nf6 {[%clk 0:02:56.6]} 3. d4 {[%clk 0:02:27.7]} 3... Qxd5 {[%clk
0:02:52.8]} 4. Nc3 {[%clk 0:02:26.4]} 4... Qd6 {[%clk 0:02:51.6]} 5. Nf3 {[%clk
0:02:25.8]} 5... c6 {[%clk 0:02:51.4]} 6. g3 {[%clk 0:02:25.8]} 6... Bg4 {[%clk
0:02:50.2]} 7. Bg2 {[%clk 0:02:25.8]} 7... g6 {[%clk 0:02:48.8]} 8. h3 {[%clk
0:02:25.2]} 8... Bxf3 {[%clk 0:02:48.3]} 9. Bxf3 {[%clk 0:02:26.1]} 9... Bg7
{[%clk 0:02:48.3]} 10. O-O {[%clk 0:02:24.5]} 10... O-O {[%clk 0:02:48]} 11. Bf4
{[%clk 0:02:24.1]} 11... Qd8 {[%clk 0:02:36.3]} 12. Re1 {[%clk 0:02:22]} 12...
e6 {[%clk 0:02:34.2]} 13. Qd2 {[%clk 0:02:21.3]} 13... Nbd7 {[%clk 0:02:33.7]}
14. Rad1 {[%clk 0:02:11.7]} 14... Nb6 {[%clk 0:02:33.1]} 15. b3 {[%clk 0:02:05]}
15... Nbd5 {[%clk 0:02:31.2]} 16. Bg5 {[%clk 0:02:01.3]} 16... Nxc3 {[%clk
0:02:05.1]} 17. Qxc3 {[%clk 0:02:00.2]} 17... h6 {[%clk 0:02:04.8]} 18. Bc1
{[%clk 0:01:57.5]} 18... Nd5 {[%clk 0:02:03.4]} 19. Qd2 {[%clk 0:01:56.9]} 19...
Qf6 {[%clk 0:01:58.9]} 20. Bg2 {[%clk 0:01:54.7]} 20... Rad8 {[%clk 0:01:58.4]}
21. c4 {[%clk 0:01:53.7]} 21... Ne7 {[%clk 0:01:58.3]} 22. Bb2 {[%clk
0:01:50.2]} 22... c5 {[%clk 0:01:48.2]} 23. Bxb7 {[%clk 0:01:45.1]} 23... Nf5
{[%clk 0:01:36.3]} 24. Qa5 {[%clk 0:01:41.8]} 24... cxd4 {[%clk 0:01:29.4]} 25.
Ba3 {[%clk 0:01:31.5]} 25... Nd6 {[%clk 0:00:45.2]} 26. Bg2 {[%clk 0:01:24.7]}
26... e5 {[%clk 0:00:45.1]} 27. c5 {[%clk 0:01:23.3]} 27... Nf5 {[%clk 0:00:41]}
28. c6 {[%clk 0:01:22.3]} 28... Rfe8 {[%clk 0:00:40]} 29. c7 {[%clk 0:01:12.7]}
29... Rc8 {[%clk 0:00:39.4]} 30. Qxa7 {[%clk 0:01:04.9]} 30... Qe6 {[%clk
0:00:19.3]} 31. Qa5 {[%clk 0:00:56.5]} 31... Qd7 {[%clk 0:00:14.7]} 32. Rc1
{[%clk 0:00:49.6]} 32... d3 {[%clk 0:00:14.5]} 33. Bc6 {[%clk 0:00:49.9]} 33...
Qd4 {[%clk 0:00:14]} 34. Bc5 {[%clk 0:00:36.3]} 34... Qb2 {[%clk 0:00:11.8]} 35.
Bxe8 {[%clk 0:00:33.8]} 35... d2 {[%clk 0:00:11.5]} 36. Ba3 {[%clk 0:00:23.5]}
36... dxe1=Q+ {[%clk 0:00:09]} 37. Rxe1 {[%clk 0:00:23.7]} 37... Qxa2 {[%clk
0:00:09.3]} 38. Bd7 {[%clk 0:00:22.2]} 38... Rxc7 {[%clk 0:00:09.5]} 39. Qxc7
{[%clk 0:00:20.3]} 39... Qxa3 {[%clk 0:00:09.9]} 40. Bxf5 {[%clk 0:00:19.5]}
40... gxf5 {[%clk 0:00:10.8]} 41. Qc8+ {[%clk 0:00:19.1]} 41... Bf8 {[%clk
0:00:08.9]} 42. Qxf5 {[%clk 0:00:16.4]} 42... Bg7 {[%clk 0:00:09.3]} 43. Qd3
{[%clk 0:00:15.1]} 43... Qb4 {[%clk 0:00:09.1]} 44. Re4 {[%clk 0:00:14.3]} 44...
Qb7 {[%clk 0:00:08.9]} 45. Rc4 {[%clk 0:00:12.9]} 45... h5 {[%clk 0:00:08.5]}
46. h4 {[%clk 0:00:12.6]} 46... Bf6 {[%clk 0:00:07.3]} 47. b4 {[%clk 0:00:12]}
47... Kg7 {[%clk 0:00:07.7]} 48. b5 {[%clk 0:00:11]} 48... Qxb5 {[%clk
0:00:07.9]} 49. Rg4+ {[%clk 0:00:10.9]} 49... hxg4 {[%clk 0:00:08.8]} 50. Qxb5
{[%clk 0:00:11.5]} 1-0

[Event "*** SCC Grand Prix: Titled Tuesday Blitz"]
[Site "Chess.com"]
[Date "2020.09.29"]
[Round "2"]
[White "CrazyMartian"]
[Black "Xtrmntr78"]
[Result "0-1"]
[WhiteElo "2324"]
[BlackElo "2571"]
[TimeControl "180+1"]
[EndTime "10:17:49 PDT"]
[Termination "Xtrmntr78 won by checkmate"]

1. d4 {[%clk 0:03:00.9]} 1... f5 {[%clk 0:02:58.8]} 2. Nc3 {[%clk 0:03:00.4]}
2... Nf6 {[%clk 0:02:58.7]} 3. Bg5 {[%clk 0:03:00.9]} 3... d5 {[%clk 0:02:58.8]}
4. Bxf6 {[%clk 0:03:00.2]} 4... exf6 {[%clk 0:02:59.3]} 5. e3 {[%clk 0:03:01.1]}
5... c6 {[%clk 0:02:57.3]} 6. Bd3 {[%clk 0:03:01.1]} 6... Bd6 {[%clk 0:02:56.9]}
7. Qf3 {[%clk 0:03:00]} 7... g6 {[%clk 0:02:55.9]} 8. Nge2 {[%clk 0:03:00]} 8...
Be6 {[%clk 0:02:53.6]} 9. h4 {[%clk 0:03:00.2]} 9... h5 {[%clk 0:02:52.5]} 10.
a3 {[%clk 0:03:00.1]} 10... Nd7 {[%clk 0:02:47.8]} 11. g3 {[%clk 0:02:56.1]}
11... Qe7 {[%clk 0:02:42]} 12. Nf4 {[%clk 0:02:54.7]} 12... Bf7 {[%clk
0:02:40.2]} 13. Be2 {[%clk 0:02:55]} 13... O-O-O {[%clk 0:02:35.1]} 14. Nd3
{[%clk 0:02:49]} 14... Kb8 {[%clk 0:02:24.5]} 15. b4 {[%clk 0:02:49.1]} 15...
Nb6 {[%clk 0:02:19.9]} 16. Nc5 {[%clk 0:02:43.1]} 16... Nc4 {[%clk 0:02:19]} 17.
Bxc4 {[%clk 0:02:32.7]} 17... dxc4 {[%clk 0:02:18.5]} 18. a4 {[%clk 0:02:29]}
18... Bxc5 {[%clk 0:02:06.3]} 19. bxc5 {[%clk 0:02:28.8]} 19... Rxd4 {[%clk
0:02:05.2]} 20. O-O {[%clk 0:02:26.9]} 20... Bd5 {[%clk 0:01:47.5]} 21. Nxd5
{[%clk 0:02:15]} 21... Rxd5 {[%clk 0:01:47]} 22. Qf4+ {[%clk 0:02:06.9]} 22...
Ka8 {[%clk 0:01:46.6]} 23. Qxc4 {[%clk 0:02:06]} 23... Rxc5 {[%clk 0:01:46]} 24.
Qb3 {[%clk 0:02:00.2]} 24... g5 {[%clk 0:01:44.8]} 25. Qb4 {[%clk 0:01:44.3]}
25... f4 {[%clk 0:01:36.7]} 26. exf4 {[%clk 0:01:40.7]} 26... gxh4 {[%clk
0:01:36.1]} 27. Rfe1 {[%clk 0:01:37.9]} 27... Qf8 {[%clk 0:01:32.5]} 28. Rab1
{[%clk 0:01:37.7]} 28... b6 {[%clk 0:01:18.7]} 29. a5 {[%clk 0:01:28.4]} 29...
b5 {[%clk 0:01:18.3]} 30. Re8+ {[%clk 0:01:15.4]} 30... Qxe8 {[%clk 0:01:15.3]}
31. Qxc5 {[%clk 0:01:16]} 31... hxg3 {[%clk 0:01:13.5]} 32. fxg3 {[%clk
0:01:16.9]} 32... Rg8 {[%clk 0:01:10.4]} 33. Kf2 {[%clk 0:01:15.5]} 33... h4
{[%clk 0:01:08.9]} 34. gxh4 {[%clk 0:01:07.3]} 34... Qe4 {[%clk 0:01:06.2]} 35.
Rg1 {[%clk 0:01:02.3]} 35... Qxf4+ {[%clk 0:01:03.5]} 36. Ke2 {[%clk 0:01:00.6]}
36... Re8+ {[%clk 0:01:00.1]} 37. Kd1 {[%clk 0:00:59.1]} 37... Rd8+ {[%clk
0:00:57.2]} 38. Ke1 {[%clk 0:00:56.7]} 38... Qxh4+ {[%clk 0:00:51.6]} 39. Ke2
{[%clk 0:00:51.9]} 39... Qe4+ {[%clk 0:00:44.4]} 40. Qe3 {[%clk 0:00:49.6]}
40... Qxc2+ {[%clk 0:00:42.2]} 41. Kf3 {[%clk 0:00:43.9]} 41... Rd3 {[%clk
0:00:20.4]} 42. Rg8+ {[%clk 0:00:43.2]} 42... Kb7 {[%clk 0:00:20.3]} 43. Rg7+
{[%clk 0:00:43]} 43... Kc8 {[%clk 0:00:20.3]} 44. Rg8+ {[%clk 0:00:41.8]} 44...
Kd7 {[%clk 0:00:20.2]} 45. Rg7+ {[%clk 0:00:42.1]} 45... Kd6 {[%clk 0:00:20.2]}
46. Rxa7 {[%clk 0:00:32.4]} 46... Qd1+ {[%clk 0:00:17.4]} 47. Kf4 {[%clk
0:00:31.8]} 47... Rxe3 {[%clk 0:00:17.3]} 48. Kxe3 {[%clk 0:00:31.9]} 48... Qg1+
{[%clk 0:00:17.1]} 49. Ke4 {[%clk 0:00:32.2]} 49... Qxa7 {[%clk 0:00:16.6]} 50.
a6 {[%clk 0:00:33.1]} 50... Qxa6 {[%clk 0:00:16.5]} 51. Kf5 {[%clk 0:00:34]}
51... b4 {[%clk 0:00:16.6]} 52. Kg6 {[%clk 0:00:34.4]} 52... c5 {[%clk
0:00:16.6]} 53. Kf5 {[%clk 0:00:35.3]} 53... c4 {[%clk 0:00:16.2]} 54. Kg6
{[%clk 0:00:36.2]} 54... c3 {[%clk 0:00:16.3]} 55. Kf5 {[%clk 0:00:37.1]} 55...
c2 {[%clk 0:00:16.5]} 56. Kg6 {[%clk 0:00:38]} 56... f5 {[%clk 0:00:16.8]} 57.
Kxf5 {[%clk 0:00:38.9]} 57... c1=Q {[%clk 0:00:16]} 58. Kg6 {[%clk 0:00:39.8]}
58... Ke5+ {[%clk 0:00:15.7]} 59. Kh5 {[%clk 0:00:39]} 59... Qe2+ {[%clk
0:00:14.4]} 60. Kh4 {[%clk 0:00:38.6]} 60... Qf4+ {[%clk 0:00:11.6]} 61. Kh3
{[%clk 0:00:37.8]} 61... Qef3# {[%clk 0:00:08.6]} 0-1

[Event "*** SCC Grand Prix: Titled Tuesday Blitz"]
[Site "Chess.com"]
[Date "2020.09.29"]
[Round "2"]
[White "shineatchess"]
[Black "Artem_Sadovsky"]
[Result "0-1"]
[WhiteElo "2212"]
[BlackElo "2503"]
[TimeControl "180+1"]
[EndTime "10:17:52 PDT"]
[Termination "Artem_Sadovsky won on time"]

1. e4 {[%clk 0:03:00.9]} 1... c6 {[%clk 0:02:55.1]} 2. d4 {[%clk 0:03:00.3]}
2... d5 {[%clk 0:02:56]} 3. e5 {[%clk 0:03:00]} 3... c5 {[%clk 0:02:56.2]} 4.
dxc5 {[%clk 0:02:59]} 4... Nc6 {[%clk 0:02:56.8]} 5. Nf3 {[%clk 0:02:57.8]} 5...
Bg4 {[%clk 0:02:57.5]} 6. Be2 {[%clk 0:02:46.4]} 6... e6 {[%clk 0:02:57.4]} 7.
Nbd2 {[%clk 0:02:43.8]} 7... Bxc5 {[%clk 0:02:57]} 8. h3 {[%clk 0:02:42.4]} 8...
Bf5 {[%clk 0:02:37.1]} 9. a3 {[%clk 0:02:38.7]} 9... a5 {[%clk 0:02:35.1]} 10.
O-O {[%clk 0:02:37]} 10... Qc7 {[%clk 0:02:25.3]} 11. Nb3 {[%clk 0:02:32.5]}
11... Bb6 {[%clk 0:02:24.8]} 12. Bb5 {[%clk 0:02:08.9]} 12... Ne7 {[%clk
0:02:23.5]} 13. Nbd4 {[%clk 0:01:44.6]} 13... O-O {[%clk 0:02:06.5]} 14. Nxf5
{[%clk 0:01:42.2]} 14... Nxf5 {[%clk 0:02:07.4]} 15. Re1 {[%clk 0:01:38]} 15...
Bxf2+ {[%clk 0:01:53.2]} 16. Kxf2 {[%clk 0:01:34]} 16... Qb6+ {[%clk 0:01:53.7]}
17. Be3 {[%clk 0:01:20]} 17... Nxe3 {[%clk 0:01:46.8]} 18. Rxe3 {[%clk
0:01:19.2]} 18... Qxb5 {[%clk 0:01:46.3]} 19. Kg3 {[%clk 0:00:57]} 19... a4
{[%clk 0:01:25.2]} 20. Kh2 {[%clk 0:00:50.5]} 20... Rac8 {[%clk 0:01:09.2]} 21.
b3 {[%clk 0:00:41.9]} 21... d4 {[%clk 0:01:00.6]} 22. Re4 {[%clk 0:00:34.9]}
22... axb3 {[%clk 0:00:45.7]} 23. cxb3 {[%clk 0:00:33.6]} 23... d3 {[%clk
0:00:46.3]} 24. a4 {[%clk 0:00:20.4]} 24... Qa6 {[%clk 0:00:39.3]} 25. Rh4
{[%clk 0:00:19]} 25... h6 {[%clk 0:00:32.4]} 26. b4 {[%clk 0:00:18.7]} 26... Ne7
{[%clk 0:00:12.7]} 27. b5 {[%clk 0:00:17.9]} 27... Qb6 {[%clk 0:00:13.1]} 28.
Qxd3 {[%clk 0:00:17.6]} 28... Nf5 {[%clk 0:00:13.7]} 29. Rg4 {[%clk 0:00:15.5]}
29... Rfd8 {[%clk 0:00:13.9]} 30. Qe2 {[%clk 0:00:11.9]} 30... Rc3 {[%clk
0:00:14.2]} 31. Rd1 {[%clk 0:00:07.8]} 31... Rxd1 {[%clk 0:00:10.6]} 32. Qxd1
{[%clk 0:00:07.6]} 32... Ne3 {[%clk 0:00:11.4]} 33. Qd2 {[%clk 0:00:05.2]} 33...
Nxg4+ {[%clk 0:00:11.2]} 34. hxg4 {[%clk 0:00:03.9]} 34... Rc4 {[%clk
0:00:10.6]} 35. g5 {[%clk 0:00:03.9]} 35... Rxa4 {[%clk 0:00:08]} 36. gxh6
{[%clk 0:00:03.4]} 36... gxh6 {[%clk 0:00:03.4]} 37. Qxh6 {[%clk 0:00:03.1]}
37... Qd8 {[%clk 0:00:02.9]} 38. Qh5 {[%clk 0:00:02.7]} 38... Kf8 {[%clk
0:00:02.1]} 39. Qh8+ {[%clk 0:00:02.1]} 39... Ke7 {[%clk 0:00:02.7]} 40. Qf6+
{[%clk 0:00:02.2]} 40... Ke8 {[%clk 0:00:03]} 41. Qh8+ {[%clk 0:00:02.2]} 41...
Kd7 {[%clk 0:00:03.6]} 42. Qg7 {[%clk 0:00:02]} 42... Qe7 {[%clk 0:00:04]} 43.
Ng5 {[%clk 0:00:01.2]} 43... Rf4 {[%clk 0:00:04.5]} 0-1

[Event "*** SCC Grand Prix: Titled Tuesday Blitz"]
[Site "Chess.com"]
[Date "2020.09.29"]
[Round "2"]
[White "Zhigalko_Sergei"]
[Black "Schandenfreude"]
[Result "1-0"]
[WhiteElo "2936"]
[BlackElo "2578"]
[TimeControl "180+1"]
[EndTime "10:17:53 PDT"]
[Termination "Zhigalko_Sergei won by checkmate"]

1. e4 {[%clk 0:03:00.9]} 1... e6 {[%clk 0:02:20.4]} 2. d4 {[%clk 0:02:57.5]}
2... d5 {[%clk 0:02:20]} 3. e5 {[%clk 0:02:58.1]} 3... c5 {[%clk 0:02:19.7]} 4.
c3 {[%clk 0:02:58.8]} 4... Nc6 {[%clk 0:02:19.5]} 5. Nf3 {[%clk 0:02:59.1]} 5...
Qb6 {[%clk 0:02:18]} 6. a3 {[%clk 0:02:59.2]} 6... c4 {[%clk 0:02:18]} 7. Nbd2
{[%clk 0:02:59]} 7... Na5 {[%clk 0:02:17.9]} 8. Be2 {[%clk 0:02:56.1]} 8... Bd7
{[%clk 0:02:16.7]} 9. O-O {[%clk 0:02:56.2]} 9... Ne7 {[%clk 0:02:17]} 10. Rb1
{[%clk 0:02:55.7]} 10... Qc7 {[%clk 0:02:15.9]} 11. Qe1 {[%clk 0:02:55.8]} 11...
Nc8 {[%clk 0:02:10.7]} 12. Bd1 {[%clk 0:02:56.7]} 12... Nb6 {[%clk 0:02:09.9]}
13. h4 {[%clk 0:02:57.3]} 13... h6 {[%clk 0:02:09.4]} 14. h5 {[%clk 0:02:57.6]}
14... Be7 {[%clk 0:02:07.5]} 15. Nh2 {[%clk 0:02:52.8]} 15... Ba4 {[%clk
0:01:59.6]} 16. f4 {[%clk 0:02:51.7]} 16... Bxd1 {[%clk 0:01:58.7]} 17. Qxd1
{[%clk 0:02:51.1]} 17... O-O-O {[%clk 0:01:57.5]} 18. Qg4 {[%clk 0:02:44.3]}
18... Rdg8 {[%clk 0:01:54.9]} 19. f5 {[%clk 0:02:44.4]} 19... Qd7 {[%clk
0:01:27.3]} 20. fxe6 {[%clk 0:02:43.2]} 20... fxe6 {[%clk 0:01:28.2]} 21. Rf7
{[%clk 0:02:38.9]} 21... Nc6 {[%clk 0:01:27.8]} 22. Ndf3 {[%clk 0:02:21.7]}
22... Nd8 {[%clk 0:01:23.8]} 23. Rxg7 {[%clk 0:02:21]} 23... Qe8 {[%clk
0:01:16.7]} 24. Bxh6 {[%clk 0:02:00]} 24... Rxg7 {[%clk 0:01:13.4]} 25. Bxg7
{[%clk 0:01:52.6]} 25... Rxh5 {[%clk 0:01:13.5]} 26. Rf1 {[%clk 0:01:43.8]}
26... Na4 {[%clk 0:01:13.3]} 27. Rf2 {[%clk 0:01:29.2]} 27... Rf5 {[%clk
0:01:01.5]} 28. Qh3 {[%clk 0:01:08.5]} 28... Rh5 {[%clk 0:00:59.9]} 29. Qg4
{[%clk 0:01:04.6]} 29... Rf5 {[%clk 0:00:59.9]} 30. Nf1 {[%clk 0:00:54.1]} 30...
Qf7 {[%clk 0:00:53.4]} 31. Bh6 {[%clk 0:00:43.4]} 31... Qh7 {[%clk 0:00:49.4]}
32. Bc1 {[%clk 0:00:27.6]} 32... Rh5 {[%clk 0:00:49.2]} 33. Ng3 {[%clk 0:00:27]}
33... Qb1 {[%clk 0:00:18]} 34. Rf1 {[%clk 0:00:27.3]} 34... Rh8 {[%clk
0:00:16.1]} 35. Bg5 {[%clk 0:00:26.8]} 35... Qh7 {[%clk 0:00:15]} 36. Bxe7
{[%clk 0:00:17]} 36... Qxe7 {[%clk 0:00:15.9]} 37. Rf2 {[%clk 0:00:16.6]} 37...
Qh7 {[%clk 0:00:14.7]} 38. Qf4 {[%clk 0:00:09.9]} 38... Qb1+ {[%clk 0:00:14.6]}
39. Nf1 {[%clk 0:00:08.6]} 39... Nxb2 {[%clk 0:00:14.3]} 40. Qf6 {[%clk
0:00:06.9]} 40... Rg8 {[%clk 0:00:13.3]} 41. Ng5 {[%clk 0:00:06.1]} 41... Nd3
{[%clk 0:00:11.9]} 42. Rf3 {[%clk 0:00:06]} 42... Qc1 {[%clk 0:00:11.8]} 43.
Nxe6 {[%clk 0:00:05.5]} 43... Ne1 {[%clk 0:00:06.5]} 44. Rf2 {[%clk 0:00:05.1]}
44... Nxg2 {[%clk 0:00:05.7]} 45. Rxg2 {[%clk 0:00:04.4]} 45... Rxg2+ {[%clk
0:00:05.6]} 46. Kxg2 {[%clk 0:00:05.3]} 46... Qc2+ {[%clk 0:00:03.8]} 47. Kg1
{[%clk 0:00:05.5]} 47... Nxe6 {[%clk 0:00:03.1]} 48. Qxe6+ {[%clk 0:00:05.7]}
48... Kc7 {[%clk 0:00:04]} 49. Qd6+ {[%clk 0:00:06]} 49... Kc8 {[%clk
0:00:04.1]} 50. Qc5+ {[%clk 0:00:06.5]} 50... Kb8 {[%clk 0:00:04.5]} 51. Qxd5
{[%clk 0:00:06.8]} 51... Qxc3 {[%clk 0:00:04.5]} 52. Qd8# {[%clk 0:00:06.8]} 1-0